bitfinex/quotes_SOLUSD_20250520
["timestamp","ask_amount","ask_price","bid_price","bid_amount"]
[1747740640538,33.81803122,166.24,166.15,19.6513]
[1747740641034,63.89502833,166.24,166.15,19.6513]
[1747740641453,12.76394727,166.23,166.15,1.6113]
[1747740641742,12.76394727,166.22,166.15,1.6113]
[1747740642312,12.76394727,166.21,166.13,39.14]
[1747740642938,21.0589651,166.2,166.13,21.1]
[1747740643132,21.0589651,166.2,166.13,39.14]
[1747740643321,51.14320096,166.2,166.13,21.1]
[1747740643525,63.90714823,166.2,166.13,21.1]
[1747740643743,0.5,166.19,166.13,21.1]
[1747740644922,21.06149957,166.18,166.14,3.43940159]
[1747740646132,15.04392827,166.18,166.14,3.43940159]
[1747740646434,6.01684717,166.2,166.15,3.43940159]
[1747740647022,21.0589651,166.2,166.15,3.43940159]
[1747740647744,21.0589651,166.2,166.14,3.43940159]
[1747740648328,15.04211793,166.2,166.14,3.43940159]
[1747740652051,21.05643123,166.22,166.14,3.43940159]
[1747740652864,21.05643123,166.22,166.14,9.45829992]
[1747740654233,15.04030802,166.22,166.14,9.45829992]
[1747740654434,15.04030802,166.22,166.15,3.43940159]
[1747740657155,15.04030802,166.22,166.15,29.43940159]
[1747740657648,15.04030802,166.22,166.17,26.0]
[1747740659353,15.04030802,166.22,166.18,3.43940159]
[1747740660628,21.05389797,166.24,166.18,21.47940159]
[1747740661551,6.01539942,166.24,166.21,26.0]
[1747740662140,21.05063886,166.27,166.21,26.0]
[1747740666672,21.05063886,166.27,166.22,3.45042359]
[1747740668072,21.05063886,166.27,166.21,26.0]
[1747740668869,12.76394727,166.24,166.17,1.525]
[1747740669079,12.76394727,166.23,166.14,26.46046135]
[1747740669362,6.01684717,166.2,166.17,26.0]
[1747740670857,15.04176595,166.21,166.17,26.0]
[1747740677164,15.04176595,166.21,166.14,18.04]
[1747740677968,15.04176595,166.21,166.14,21.09525181]
[1747740678170,6.01576129,166.23,166.15,50.76854886]
[1747740678542,6.01576129,166.23,166.18,26.0]
[1747740679249,15.03892216,166.24,166.18,26.0]
[1747740680190,15.03892216,166.24,166.17,32.01786656]
[1747740680476,15.03892216,166.24,166.19,3.4519345]
[1747740680844,6.01503759,166.25,166.19,3.4519345]
[1747740681785,6.01503759,166.25,166.2,44.04]
[1747740682266,6.01503759,166.25,166.21,3.4519345]
[1747740682643,6.01359071,166.29,166.23,26.0]
[1747740683068,21.04756749,166.29,166.23,26.0]
[1747740684051,21.04756749,166.29,166.22,26.0]
[1747740684445,21.04756749,166.29,166.23,3.44994576]
[1747740685657,15.03397678,166.29,166.23,3.44994576]
[1747740685858,15.03397678,166.29,166.24,26.0]
[1747740686575,15.03397678,166.29,166.24,3.44994576]
[1747740686760,15.03397678,166.29,166.24,29.44994576]
[1747740686961,6.0132291,166.3,166.24,29.44994576]
[1747740687161,6.0132291,166.3,166.27,26.0]
[1747740687861,15.03169075,166.32,166.27,26.0]
[1747740689868,6.01178309,166.34,166.27,26.0]
[1747740690567,21.04124082,166.34,166.26,18.04]
[1747740692552,33.80518809,166.34,166.26,18.04]
[1747740693381,21.04124082,166.34,166.26,18.04]
[1747740694280,15.02945773,166.34,166.26,18.04]
[1747740694659,15.02945773,166.34,166.29,26.0]
[1747740696885,21.04124082,166.34,166.29,26.0]
[1747740701169,6.0114217,166.35,166.29,26.0]
[1747740703492,6.0114217,166.35,166.29,32.01349558]
[1747740704197,6.0108958,166.37,166.29,32.01349558]
[1747740704592,6.355,166.39,166.3,1.5466]
[1747740704799,6.01010894,166.39,166.3,1.5466]
[1747740705277,6.01010894,166.39,166.32,26.0]
[1747740705593,6.01010894,166.39,166.32,44.02]
[1747740706686,21.03505034,166.39,166.32,44.02]
[1747740708397,33.79899761,166.39,166.32,44.02]
[1747740708697,12.76394727,166.37,166.3,45.5666]
[1747740708918,12.76394727,166.36,166.29,18.02]
[1747740709707,21.03997595,166.35,166.29,18.02]
[1747740712592,6.0114217,166.35,166.29,18.02]
[1747740712909,6.01069904,166.37,166.29,24.03351331]
[1747740714587,21.03681747,166.38,166.29,24.03351331]
[1747740715606,21.03681747,166.38,166.29,18.02]
[1747740716683,33.80076474,166.38,166.29,18.02]
[1747740717417,12.76394727,166.36,166.29,26.0]
[1747740717575,12.76394727,166.37,166.29,26.0]
[1747740717775,21.03681747,166.38,166.29,26.0]
[1747740718178,6.01033778,166.38,166.33,26.0]
[1747740718886,6.00961538,166.4,166.33,26.0]
[1747740719379,6.00961538,166.4,166.35,26.0]
[1747740719605,6.00961538,166.4,166.36,1.624]
[1747740720610,15.02117351,166.44,166.36,1.624]
[1747740720808,15.02117351,166.44,166.36,4.68861372]
[1747740722889,15.02117351,166.44,166.36,1.624]
[1747740722890,27.78512078,166.44,166.36,1.624]
[1747740723286,15.02117351,166.44,166.36,1.624]
[1747740723479,15.02117351,166.44,166.38,26.0]
[1747740723807,6.00781015,166.45,166.38,26.0]
[1747740724189,6.00781015,166.45,166.38,46.88]
[1747740724709,21.0255005,166.47,166.38,52.89032379]
[1747740725286,21.0255005,166.47,166.38,46.88]
[1747740726186,21.0255005,166.47,166.38,52.89031209]
[1747740726514,21.0255005,166.47,166.39,3.43660814]
[1747740726818,12.76394727,166.46,166.39,3.43660814]
[1747740727432,33.78944777,166.47,166.39,3.43660814]
[1747740727718,33.78944777,166.47,166.38,46.88]
[1747740728222,12.76394727,166.46,166.38,46.88]
[1747740728820,21.02733553,166.45,166.38,46.88]
[1747740729190,6.00781015,166.45,166.38,46.88]
[1747740730815,15.01889917,166.46,166.38,46.88]
[1747740731111,15.01889917,166.46,166.39,3.44276811]
[1747740732814,15.01889917,166.46,166.38,44.02]
[1747740732988,21.0263484,166.46,166.38,44.02]
[1747740733499,12.76394727,166.45,166.38,26.0]
[1747740733715,12.76394727,166.45,166.37,18.02]
[1747740734115,12.76394727,166.45,166.37,44.02]
[1747740734301,51.06359458,166.46,166.37,44.02]
[1747740734508,12.76394727,166.45,166.37,44.02]
[1747740735320,21.02859889,166.44,166.37,44.02]
[1747740736906,33.79254616,166.44,166.37,26.0]
[1747740737105,12.76394727,166.42,166.36,1.624]
[1747740737330,21.03238987,166.41,166.36,1.624]
[1747740738305,21.03238987,166.41,166.35,18.02]
[1747740738830,33.79633714,166.41,166.35,18.02]
[1747740741117,21.03238987,166.41,166.35,18.02]
[1747740741318,33.79633714,166.41,166.35,18.02]
[1747740741526,21.03238987,166.41,166.35,18.02]
[1747740742238,6.00925425,166.41,166.35,18.02]
[1747740742629,21.02986239,166.43,166.36,3.43278249]
[1747740743837,21.02986239,166.43,166.35,18.02]
[1747740744634,15.02133028,166.43,166.35,18.02]
[1747740744961,15.02133028,166.43,166.36,26.0]
[1747740748034,6.00817111,166.44,166.37,3.43182386]
[1747740749019,15.01931654,166.46,166.37,3.43182386]
[1747740749220,27.78326381,166.46,166.38,26.0]
[1747740749418,27.78326381,166.46,166.38,29.43182386]
[1747740750546,33.79071304,166.46,166.38,26.0]
[1747740753034,12.76394727,166.45,166.38,26.0]
[1747740754216,12.76394727,166.42,166.36,26.0]
[1747740754417,12.76394727,166.42,166.36,44.02]
[1747740754832,21.03238987,166.41,166.36,26.0]
[1747740755645,12.76394727,166.4,166.34,26.0]
[1747740756226,33.79633714,166.41,166.34,26.0]
[1747740756630,21.03238987,166.41,166.34,26.0]
[1747740757237,33.79633714,166.41,166.34,26.0]
[1747740757417,21.03238987,166.41,166.34,26.0]
[1747740759325,21.03238987,166.41,166.35,3.43773927]
[1747740760628,21.03238987,166.41,166.36,3.43773927]
[1747740762565,21.03238987,166.41,166.35,3.43773927]
[1747740762851,21.03238987,166.41,166.35,21.45773927]
[1747740763770,21.03238987,166.41,166.36,3.43773927]
[1747740767737,21.03238987,166.41,166.36,21.45773927]
[1747740769361,21.03238987,166.41,166.37,3.43773927]
[1747740778353,6.00925425,166.41,166.37,29.43773927]
[1747740779580,6.00925425,166.41,166.38,3.43773927]
[1747740779882,21.02948709,166.44,166.38,3.43773927]
[1747740780381,6.00672753,166.48,166.39,22.3176]
[1747740780682,6.00672753,166.48,166.4,26.0]
[1747740780855,18.7706748,166.48,166.41,18.02]
[1747740781350,18.7706748,166.48,166.42,3.43773927]
[1747740781586,33.78749363,166.48,166.42,3.43773927]
[1747740781762,21.02354636,166.48,166.42,3.43773927]
[1747740782174,33.78749363,166.48,166.42,3.43773927]
[1747740782696,33.78749363,166.48,166.41,18.02]
[1747740784770,21.02354636,166.48,166.41,18.02]
[1747740784982,33.78749363,166.48,166.41,18.02]
[1747740785292,33.78749363,166.48,166.42,3.43303049]
[1747740786589,21.02354636,166.48,166.42,3.43303049]
[1747740786770,21.02354636,166.48,166.41,18.02]
[1747740789791,21.02354636,166.48,166.42,3.42696416]
[1747740790476,33.78749363,166.48,166.42,3.42696416]
[1747740791291,33.78749363,166.48,166.41,18.02]
[1747740792677,63.8211313,166.48,166.4,26.0]
[1747740792869,51.05718403,166.48,166.4,44.02]
[1747740793069,21.02354636,166.48,166.41,3.42379849]
[1747740793293,12.76394727,166.5,166.41,3.42379849]
[1747740793691,8.12422829,166.5,166.41,3.42379849]
[1747740794898,8.12422829,166.5,166.42,3.42379849]
[1747740795597,21.02228361,166.49,166.42,3.42379849]
[1747740795776,21.02228361,166.49,166.43,3.42379849]
[1747740796681,6.00636674,166.49,166.45,26.0]
[1747740797531,6.00636674,166.49,166.41,6.00911876]
[1747740797801,6.006006,166.5,166.44,26.0]
[1747740798110,33.71372794,166.5,166.43,26.0]
[1747740798394,33.71372794,166.5,166.42,44.02]
[1747740798395,12.69270693,166.48,166.42,44.02]
[1747740800300,21.02480927,166.47,166.42,44.02]
[1747740800680,12.69270693,166.46,166.4,26.0]
[1747740800987,12.69270693,166.46,166.39,40.2776]
[1747740801301,51.06025109,166.47,166.39,66.2776]
[1747740801302,63.75295802,166.47,166.39,66.2776]
[1747740801706,21.02480927,166.47,166.39,66.2776]
[1747740802087,21.02480927,166.47,166.42,26.0]
[1747740803102,6.00708836,166.47,166.42,26.0]
[1747740804507,6.00636674,166.49,166.43,3.41797658]
[1747740805025,21.02228361,166.49,166.43,3.41797658]
[1747740806195,21.02228361,166.49,166.42,26.0]
[1747740806391,15.01591687,166.49,166.44,26.0]
[1747740806604,15.01591687,166.49,166.45,26.0]
[1747740807597,15.01591687,166.49,166.42,32.00881982]
[1747740807800,6.0056453,166.51,166.42,32.00881982]
[1747740808209,21.01975856,166.51,166.42,32.00881982]
[1747740808512,21.01975856,166.51,166.43,1.6532]
[1747740809529,21.01975856,166.51,166.44,3.41094859]
[1747740809822,21.01975856,166.51,166.45,18.02]
[1747740810406,15.01411326,166.51,166.46,26.0]
[1747740810604,6.00528465,166.52,166.46,26.0]
[1747740811712,12.69270693,166.53,166.45,18.02]
[1747740812402,15.01220982,166.54,166.46,3.40930116]
[1747740813211,6.00420294,166.55,166.46,3.40930116]
[1747740813520,6.00420294,166.55,166.47,1.6186]
[1747740813728,6.00384245,166.56,166.48,6.00672753]
[1747740814920,21.01344859,166.56,166.47,11.03490763]
[1747740815122,21.01344859,166.56,166.49,3.40930116]
[1747740816508,6.00312162,166.58,166.5,26.0]
[1747740816714,6.00312162,166.58,166.51,38.7]
[1747740817924,21.01034537,166.59,166.51,38.7]
[1747740818609,33.7030523,166.59,166.51,38.7]
[1747740818812,12.69270693,166.58,166.51,38.7]
[1747740819315,21.01034537,166.59,166.51,38.7]
[1747740819505,12.69270693,166.58,166.51,38.7]
[1747740819705,12.69270693,166.57,166.51,38.7]
[1747740819928,21.01344859,166.56,166.51,38.7]
[1747740821917,15.00960614,166.56,166.51,38.7]
[1747740824036,33.70237137,166.59,166.51,38.7]
[1747740824931,21.00966444,166.59,166.54,26.0]
[1747740825133,6.00276127,166.59,166.54,27.5133]
[1747740825333,6.00235276,166.61,166.58,26.0]
[1747740826036,33.69732794,166.63,166.57,18.0]
[1747740826231,21.00462101,166.63,166.57,18.0]
[1747740826539,6.00132029,166.63,166.57,18.0]
[1747740826724,6.00060006,166.65,166.57,24.00340009]
[1747740827042,33.69480714,166.65,166.57,18.0]
[1747740827337,21.00210021,166.65,166.57,20.95158665]
[1747740828023,12.69270693,166.63,166.57,18.0]
[1747740828212,15.00150015,166.65,166.57,18.0]
[1747740828413,12.69270693,166.63,166.57,18.0]
[1747740828913,12.69270693,166.64,166.57,18.0]
[1747740829217,33.69732794,166.63,166.57,18.0]
[1747740829728,21.00462101,166.63,166.57,18.0]
[1747740829931,33.69732794,166.63,166.57,18.0]
[1747740830838,21.00462101,166.63,166.57,18.0]
[1747740831035,12.69270693,166.62,166.57,18.0]
[1747740831345,6.00204069,166.61,166.57,18.0]
[1747740831738,21.00714242,166.61,166.57,18.0]
[1747740831939,33.69984935,166.61,166.57,18.0]
[1747740835117,21.00714242,166.61,166.57,18.0]
[1747740837049,33.69984935,166.61,166.57,18.0]
[1747740837656,21.00714242,166.61,166.57,18.0]
[1747740837831,33.69984935,166.61,166.57,18.0]
[1747740838162,21.00714242,166.61,166.57,18.0]
[1747740838323,12.69270693,166.6,166.57,18.0]
[1747740838523,33.69984935,166.61,166.57,18.0]
[1747740840244,33.69984935,166.61,166.54,1.5133]
[1747740840245,12.69270693,166.59,166.54,1.5133]
[1747740840465,12.69270693,166.56,166.51,18.0]
[1747740840632,12.69270693,166.56,166.48,20.64]
[1747740840633,12.69270693,166.54,166.48,20.98488333]
[1747740840821,12.69270693,166.52,166.46,1.6023]
[1747740841027,12.69270693,166.52,166.47,18.0]
[1747740841324,12.69270693,166.48,166.43,8.42046135]
[1747740841523,137.0,166.55,166.43,8.42046135]
[1747740841750,21.02228361,166.49,166.42,45.5971]
[1747740842043,21.02228361,166.49,166.42,22.64466828]
[1747740842434,21.02228361,166.49,166.43,26.0]
[1747740843351,6.00636674,166.49,166.43,26.0]
[1747740844351,18.69907367,166.49,166.43,26.0]
[1747740844952,6.00636674,166.49,166.43,26.0]
[1747740845532,6.00636674,166.49,166.42,22.64466828]
[1747740845533,12.69270693,166.48,166.42,1.5971]
[1747740845846,51.04491952,166.52,166.42,1.5971]
[1747740846150,21.01849627,166.52,166.42,1.5971]
[1747740846453,12.69270693,166.5,166.42,1.5971]
[1747740847349,12.69270693,166.49,166.42,1.5971]
[1747740847544,21.01849627,166.52,166.42,1.5971]
[1747740847848,15.01321162,166.52,166.42,1.5971]
[1747740848047,12.69270693,166.5,166.42,1.5971]
[1747740849149,6.00636674,166.49,166.42,1.5971]
[1747740849535,6.00636674,166.49,166.42,7.6059309]
[1747740850622,6.00636674,166.49,166.42,1.5971]
[1747740853055,0.5,166.48,166.42,7.60594272]
[1747740854460,6.00708836,166.47,166.42,7.60594272]
[1747740855461,21.02114469,166.5,166.42,33.60594272]
[1747740857233,6.006006,166.5,166.42,33.60594272]
[1747740857425,6.006006,166.5,166.45,26.0]
[1747740857938,6.006006,166.5,166.42,1.5971]
[1747740857939,12.69270693,166.49,166.42,1.5971]
[1747740858145,12.69270693,166.48,166.42,1.5971]
[1747740859649,12.69270693,166.48,166.4,46.64]
[1747740859650,6.00708836,166.47,166.4,64.64]
[1747740860158,6.00708836,166.47,166.4,73.63728379]
[1747740860548,6.00708836,166.47,166.4,55.63728379]
[1747740860748,6.00708836,166.47,166.41,18.0]
[1747740861649,6.00708836,166.47,166.41,24.00914015]
[1747740862856,137.5,166.49,166.41,24.00914015]
[1747740863061,18.69943446,166.48,166.41,24.00914015]
[1747740863768,18.69943446,166.48,166.41,18.0]
[1747740864448,18.69943446,166.48,166.41,24.00924947]
[1747740865259,18.69943446,166.48,166.41,18.0]
[1747740866759,33.71625329,166.48,166.41,18.0]
[1747740868447,12.69270693,166.47,166.41,18.02]
[1747740869071,12.69270693,166.42,166.35,8.07654549]
[1747740869249,12.69270693,166.41,166.34,18.02]
[1747740869446,12.69270693,166.41,166.34,20.99167022]
[1747740869761,12.69270693,166.41,166.33,20.64]
[1747740869963,12.69270693,166.41,166.34,18.02]
[1747740870373,12.69270693,166.4,166.34,18.02]
[1747740870552,6.00997656,166.39,166.34,18.02]
[1747740872471,6.00925425,166.41,166.34,18.02]
[1747740872638,6.00817111,166.44,166.34,24.0316015]
[1747740873070,6.00817111,166.44,166.35,18.64964886]
[1747740873257,6.00817111,166.44,166.36,1.5862]
[1747740873942,6.00708836,166.47,166.37,18.64964886]
[1747740875373,21.0241466,166.48,166.39,26.0]
[1747740875582,21.0241466,166.48,166.4,38.66]
[1747740876063,6.00672753,166.48,166.4,38.66]
[1747740877055,6.006006,166.5,166.41,6.00925425]
[1747740877849,6.006006,166.5,166.4,38.66]
[1747740878044,21.02102101,166.5,166.4,38.66]
[1747740878263,33.71372794,166.5,166.4,44.66950049]
[1747740878656,0.5,166.49,166.4,44.66950049]
[1747740878855,0.5,166.49,166.41,3.40911194]
[1747740879055,6.00672753,166.48,166.41,3.40911194]
[1747740879649,21.02354636,166.48,166.41,3.40911194]
[1747740879874,12.69270693,166.46,166.41,3.40911194]
[1747740880054,12.69270693,166.47,166.41,3.40911194]
[1747740880456,12.69270693,166.46,166.4,26.0]
[1747740880761,12.69270693,166.47,166.4,26.0]
[1747740881872,6.00744923,166.46,166.4,26.0]
[1747740883959,6.00708836,166.47,166.4,26.0]
[1747740884776,6.00708836,166.47,166.41,3.42401744]
[1747740885473,6.00708836,166.47,166.42,3.42401744]
[1747740885967,6.006006,166.5,166.42,9.43280246]
[1747740886370,6.006006,166.5,166.43,20.62]
[1747740886569,6.006006,166.5,166.44,18.02]
[1747740886772,21.02102101,166.5,166.44,18.02]
[1747740887165,12.69270693,166.49,166.44,18.02]
[1747740887678,0.5,166.48,166.44,18.02]
[1747740888269,6.00708836,166.47,166.44,18.02]
[1747740888982,6.00708836,166.47,166.45,3.42999589]
[1747740890280,6.00636674,166.49,166.44,18.02]
[1747740890578,12.69270693,166.46,166.4,20.62]
[1747740890780,12.69270693,166.45,166.4,20.62]
[1747740890982,6.0201,166.47,166.38,26.0]
[1747740891170,12.69270693,166.44,166.38,44.02]
[1747740891492,12.69270693,166.42,166.37,29.04046135]
[1747740891686,12.69270693,166.43,166.39,3.43453596]
[1747740891978,12.69270693,166.44,166.39,3.43453596]
[1747740892489,6.00853211,166.43,166.39,3.43453596]
[1747740892793,12.69270693,166.47,166.39,3.43453596]
[1747740893169,12.69270693,166.47,166.4,3.43453596]
[1747740893686,0.5,166.46,166.4,3.43453596]
[1747740894486,6.00781015,166.45,166.41,3.43453596]
[1747740895585,6.00708836,166.47,166.41,3.43453596]
[1747740895774,6.00708836,166.47,166.42,3.43453596]
[1747740897058,6.006006,166.5,166.43,18.02]
[1747740897265,6.006006,166.5,166.43,23.06423596]
[1747740897776,6.006006,166.5,166.43,29.07274439]
[1747740898180,6.006006,166.5,166.44,3.43453596]
[1747740898581,21.02102101,166.5,166.44,3.43453596]
[1747740898778,12.69270693,166.49,166.44,3.43453596]
[1747740899483,12.69270693,166.49,166.43,19.6297]
[1747740899991,6.00708836,166.47,166.43,19.6297]
[1747740900288,21.02480927,166.47,166.43,18.02]
[1747740900479,33.7175162,166.47,166.4,26.0]
[1747740900681,33.7175162,166.47,166.41,3.43260066]
[1747740901073,21.02480927,166.47,166.41,3.43260066]
[1747740901593,6.00708836,166.47,166.42,26.0]
[1747740901770,6.00708836,166.47,166.43,3.43260066]
[1747740902377,6.00636674,166.49,166.43,3.43260066]
[1747740902611,33.71499054,166.49,166.43,3.43260066]
[1747740903182,33.71499054,166.49,166.41,26.0]
[1747740904295,6.00636674,166.49,166.42,18.64964886]
[1747740904670,6.00636674,166.49,166.42,22.08010368]
[1747740905292,6.0056453,166.51,166.42,28.08874923]
[1747740906083,6.0056453,166.51,166.43,3.43045482]
[1747740906898,21.01975856,166.51,166.43,3.43045482]
[1747740907286,33.71246549,166.51,166.44,3.43045482]
[1747740907666,12.69270693,166.49,166.44,3.43045482]
[1747740908567,12.69270693,166.49,166.41,26.0]
[1747740908766,12.69270693,166.49,166.41,46.62]
[1747740908971,21.01975856,166.51,166.41,46.62]
[1747740909196,12.69270693,166.5,166.41,46.62]
[1747740909399,6.00636674,166.49,166.41,52.62916327]
[1747740910389,21.02102101,166.5,166.42,3.42942555]
[1747740910787,33.71372794,166.5,166.42,3.42942555]
[1747740911497,33.71372794,166.5,166.43,3.42942555]
[1747740912095,15.01501501,166.5,166.43,3.42942555]
[1747740912285,27.70772194,166.5,166.43,3.42942555]
[1747740912790,27.70772194,166.5,166.44,3.42942555]
[1747740913193,33.71372794,166.5,166.44,3.42942555]
[1747740913889,12.69270693,166.48,166.44,3.42942555]
[1747740914284,12.69270693,166.48,166.42,18.0]
[1747740914978,12.69270693,166.46,166.41,46.62]
[1747740915185,6.00817111,166.44,166.41,20.62]
[1747740916794,27.71282047,166.45,166.41,20.62]
[1747740917220,15.02011354,166.45,166.39,1.637]
[1747740917518,15.02011354,166.45,166.4,21.43689311]
[1747740917519,27.71282047,166.45,166.4,21.43689311]
[1747740918287,33.72063062,166.45,166.4,21.43689311]
[1747740918705,21.02792369,166.45,166.4,21.43689311]
[1747740918887,33.72063062,166.45,166.4,21.43689311]
[1747740919087,33.72063062,166.45,166.41,3.43689311]
[1747740919276,21.02792369,166.45,166.41,3.43689311]
[1747740920184,33.72063062,166.45,166.41,3.43689311]
[1747740920389,6.00853211,166.43,166.41,3.43689311]
[1747740921294,12.69270693,166.42,166.41,3.43689311]
[1747740922494,18.70160009,166.42,166.41,3.43689311]
[1747740923004,70.18609879,166.42,166.34,26.44046135]
[1747740923301,12.69270693,166.38,166.34,26.44046135]
[1747740923607,12.69270693,166.4,166.34,26.44046135]
[1747740923791,149.69270693,166.41,166.34,26.44046135]
[1747740924404,21.03365384,166.4,166.35,3.43709751]
[1747740925079,33.72636077,166.4,166.35,3.43709751]
[1747740925402,33.72636077,166.4,166.34,18.02]
[1747740925590,0.5,166.39,166.34,18.02]
[1747740925783,0.5,166.39,166.35,26.0]
[1747740925977,6.00961538,166.4,166.35,26.0]
[1747740926396,21.03365384,166.4,166.35,26.0]
[1747740927306,33.72636077,166.4,166.36,3.43577638]
[1747740927513,21.03365384,166.4,166.36,3.43577638]
[1747740928003,21.03365384,166.4,166.35,26.0]
[1747740930510,0.5,166.39,166.35,26.0]
[1747740930899,6.01033778,166.38,166.35,26.0]
[1747740931413,6.01033778,166.38,166.34,18.02]
[1747740932710,21.03618223,166.38,166.34,18.02]
[1747740933096,21.03618223,166.38,166.31,20.6]
[1747740933308,33.72888916,166.38,166.32,18.02]
[1747740933710,21.03618223,166.38,166.33,18.02]
[1747740934018,21.03618223,166.38,166.33,21.44681045]
[1747740935829,21.03618223,166.38,166.33,18.02]
[1747740937005,33.72888916,166.38,166.33,18.02]
[1747740937205,12.69270693,166.37,166.32,18.02]
[1747740937400,12.69270693,166.37,166.3,1.5446]
[1747740937718,12.69270693,166.37,166.32,18.02]
[1747740938127,6.01106035,166.36,166.32,18.02]
[1747740939997,33.73141815,166.36,166.3,1.5446]
[1747740940196,33.73141815,166.36,166.3,18.02]
[1747740940197,12.69270693,166.35,166.3,18.02]
[1747740940619,12.69270693,166.35,166.29,38.64]
[1747740941003,12.69270693,166.35,166.3,18.02]
[1747740941333,33.73141815,166.36,166.3,18.02]
[1747740945623,0.5,166.35,166.3,18.02]
[1747740946513,6.01178309,166.34,166.3,18.02]
[1747740946826,6.01178309,166.34,166.29,20.62]
[1747740947120,6.01178309,166.34,166.3,18.02]
[1747740947654,6.01178309,166.34,166.29,20.62]
[1747740947830,6.01178309,166.34,166.3,18.02]
[1747740948829,0.5,166.35,166.3,24.03300591]
[1747740949332,6.01033778,166.38,166.31,1.5346]
[1747740950218,26.0,166.38,166.31,7.54732839]
[1747740950723,26.0,166.38,166.31,1.5346]
[1747740951397,0.5,166.37,166.31,1.5346]
[1747740952643,6.01106035,166.36,166.31,7.54739952]
[1747740954229,6.01069904,166.37,166.31,28.12739952]
[1747740955536,6.01069904,166.37,166.31,22.1146]
[1747740956334,6.01069904,166.37,166.32,3.42787201]
[1747740957829,6.01036316,166.38,166.33,3.42787201]
[1747740958034,6.00961538,166.4,166.33,3.42787201]
[1747740958336,6.00817111,166.44,166.35,18.64964886]
[1747740958634,6.00817111,166.44,166.36,18.02]
[1747740958832,6.00817111,166.44,166.37,20.58]
[1747740959065,21.02859889,166.44,166.37,20.58]
[1747740959425,21.02859889,166.44,166.38,3.42787201]
[1747740962057,6.00817111,166.44,166.38,3.42787201]
[1747740962237,27.71108543,166.47,166.39,18.64964886]
[1747740962441,15.0183785,166.47,166.39,18.64964886]
[1747740963052,15.0183785,166.47,166.4,3.42787201]
[1747740963357,21.02546686,166.47,166.41,18.02]
[1747740964455,6.00708836,166.47,166.41,18.02]
[1747740964830,18.69979529,166.47,166.4,26.0]
[1747740965163,12.69270693,166.46,166.38,46.58]
[1747740965330,21.02480927,166.47,166.41,18.02]
[1747740966954,21.02480927,166.47,166.41,44.02]
[1747740967156,6.00708836,166.47,166.41,44.02]
[1747740967553,6.00672753,166.48,166.41,50.02924993]
[1747740968450,6.00672753,166.48,166.42,18.64964886]
[1747740968655,15.01564609,166.5,166.42,18.64964886]
[1747740968832,15.01564609,166.5,166.42,22.07145345]
[1747740969759,21.02165209,166.5,166.42,18.64964886]
[1747740971064,33.71435902,166.5,166.42,18.64964886]
[1747740971254,12.69270693,166.49,166.41,44.02]
[1747740971453,12.69270693,166.48,166.41,44.02]
[1747740972065,21.02480927,166.47,166.41,44.02]
[1747740972844,33.7175162,166.47,166.41,26.0]
[1747740973050,33.7175162,166.47,166.42,18.02]
[1747740973252,12.69270693,166.46,166.42,18.02]
[1747740974044,21.02733553,166.45,166.42,18.02]
[1747740975162,51.05411735,166.49,166.42,18.02]
[1747740975355,12.69270693,166.46,166.42,18.02]
[1747740977169,6.00781015,166.45,166.42,18.02]
[1747740978563,21.02733553,166.45,166.42,18.02]
[1747740979366,6.00781015,166.45,166.42,18.02]
[1747740979870,12.69270693,166.43,166.37,1.638]
[1747740980170,21.02733553,166.45,166.35,18.02]
[1747740980171,12.69270693,166.4,166.35,18.02]
[1747740980850,51.06638629,166.45,166.35,18.02]
[1747740981065,12.69270693,166.42,166.35,18.02]
[1747740981652,6.00925425,166.41,166.35,18.02]
[1747740983564,21.0301581,166.43,166.35,18.02]
[1747740984564,33.72286503,166.43,166.35,18.02]
[1747740985758,21.0301581,166.43,166.35,18.02]
[1747740986861,21.0301581,166.43,166.36,3.41962854]
[1747740987184,33.72286503,166.43,166.36,3.41962854]
[1747740987480,21.0301581,166.43,166.36,3.41962854]
[1747740987984,21.0301581,166.43,166.35,18.02]
[1747740988369,33.72286503,166.43,166.35,18.02]